[Event "Titled Tuesday Blitz May 17 Early 2022"]
[White "Antipov, Mikhail Al."]
[Black "Cremisi, Daniel"]
[WhiteFideId "4107012"]
[BlackFideId "2089882"]
[WhiteElo "2512"]
[BlackElo "2172"]
[Result "1-0"]
[Round "01"]
[TimeControl "180+1"]
[Date "2022.05.17"]
[WhiteClock "0:00:14"]
[BlackClock "0:01:11"]

1. e4 {[%clk 0:02:59]}  e6 {[%clk 0:02:59]} 2. d4 {[%clk 0:02:57]}  d5 {[%clk 0:02:59]} 3. Nd2 {[%clk 0:02:56]}  dxe4 {[%clk 0:02:58]} 4. Nxe4 {[%clk 0:02:56]}  Nd7 {[%clk 0:02:58]} 5. Nf3 {[%clk 0:02:55]}  Be7 {[%clk 0:02:58]} 6. Bd3 {[%clk 0:02:54]}  Ngf6 {[%clk 0:02:57]} 7. Ng3 {[%clk 0:02:46]}  O-O {[%clk 0:02:57]} 8. O-O {[%clk 0:02:46]}  b6 {[%clk 0:02:57]} 9. Re1 {[%clk 0:02:43]}  Bb7 {[%clk 0:02:57]} 10. Ne5 {[%clk 0:02:36]}  c5 {[%clk 0:02:56]} 11. c3 {[%clk 0:02:25]}  cxd4 {[%clk 0:02:52]} 12. cxd4 {[%clk 0:02:26]}  Nxe5 {[%clk 0:02:47]} 13. dxe5 {[%clk 0:02:27]}  Qd5 {[%clk 0:02:32]} 14. Bf1 {[%clk 0:02:22]}  Qxd1 {[%clk 0:02:31]} 15. Rxd1 {[%clk 0:02:21]}  Nd5 {[%clk 0:02:31]} 16. Bd2 {[%clk 0:02:17]}  Rfd8 {[%clk 0:02:31]} 17. Rac1 {[%clk 0:02:15]}  Rac8 {[%clk 0:02:31]} 18. Ne4 {[%clk 0:02:01]}  Rxc1 {[%clk 0:02:30]} 19. Bxc1 {[%clk 0:02:02]}  Nb4 {[%clk 0:02:12]} 20. Rxd8+ {[%clk 0:01:52]}  Bxd8 {[%clk 0:02:12]} 21. Nd6 {[%clk 0:01:53]}  Bd5 {[%clk 0:02:07]} 22. a3 {[%clk 0:01:46]}  Nc6 {[%clk 0:02:07]} 23. f4 {[%clk 0:01:42]}  f6 {[%clk 0:02:07]} 24. exf6 {[%clk 0:01:39]}  Bxf6 {[%clk 0:02:07]} 25. Kf2 {[%clk 0:01:32]}  Bd4+ {[%clk 0:01:59]} 26. Ke1 {[%clk 0:01:27]}  Bc5 {[%clk 0:01:53]} 27. Nb5 {[%clk 0:01:22]}  a5 {[%clk 0:01:51]} 28. Nc3 {[%clk 0:01:22]}  Bb3 {[%clk 0:01:47]} 29. Bd3 {[%clk 0:01:11]}  h6 {[%clk 0:01:45]} 30. Be4 {[%clk 0:01:10]}  Nd4 {[%clk 0:01:43]} 31. Bd2 {[%clk 0:01:03]}  Kf7 {[%clk 0:01:41]} 32. g4 {[%clk 0:00:58]}  Bc2 {[%clk 0:01:39]} 33. Bxc2 {[%clk 0:00:44]}  Nxc2+ {[%clk 0:01:39]} 34. Ke2 {[%clk 0:00:41]}  Nd4+ {[%clk 0:01:38]} 35. Kd3 {[%clk 0:00:41]}  Nf3 {[%clk 0:01:38]} 36. h3 {[%clk 0:00:40]}  Ng1 {[%clk 0:01:36]} 37. h4 {[%clk 0:00:35]}  Nf3 {[%clk 0:01:34]} 38. h5 {[%clk 0:00:35]}  Nxd2 {[%clk 0:01:34]} 39. Kxd2 {[%clk 0:00:34]}  Bd4 {[%clk 0:01:27]} 40. Kd3 {[%clk 0:00:29]}  Bxc3 {[%clk 0:01:27]} 41. Kxc3 {[%clk 0:00:16]}  Ke7 {[%clk 0:01:27]} 42. Kd4 {[%clk 0:00:11]}  Kd6 {[%clk 0:01:21]} 43. a4 {[%clk 0:00:11]}  Kd7 {[%clk 0:01:19]} 44. Ke5 {[%clk 0:00:11]}  Ke7 {[%clk 0:01:19]} 45. g5 {[%clk 0:00:08]}  Kd7 {[%clk 0:00:58]} 46. gxh6 {[%clk 0:00:08]}  gxh6 {[%clk 0:00:58]} 47. Kf6 {[%clk 0:00:08]}  Kd6 {[%clk 0:00:57]} 48. Kg6 {[%clk 0:00:09]}  e5 {[%clk 0:00:58]} 49. fxe5+ {[%clk 0:00:09]}  Kxe5 {[%clk 0:00:59]} 50. Kxh6 {[%clk 0:00:09]}  Kf6 {[%clk 0:00:59]} 51. Kh7 {[%clk 0:00:10]}  Kf7 {[%clk 0:01:00]} 52. h6 {[%clk 0:00:10]}  Kf8 {[%clk 0:01:00]} 53. Kg6 {[%clk 0:00:10]}  Kg8 {[%clk 0:01:01]} 54. Kf6 {[%clk 0:00:10]}  Kh7 {[%clk 0:01:00]} 55. Ke6 {[%clk 0:00:11]}  Kxh6 {[%clk 0:01:01]} 56. Kd6 {[%clk 0:00:11]}  Kg7 {[%clk 0:01:01]} 57. Kc6 {[%clk 0:00:11]}  Kf7 {[%clk 0:01:02]} 58. Kxb6 {[%clk 0:00:11]}  Ke7 {[%clk 0:01:03]} 59. Kxa5 {[%clk 0:00:12]}  Kd8 {[%clk 0:01:04]} 60. Kb6 {[%clk 0:00:12]}  Kc8 {[%clk 0:01:05]} 61. a5 {[%clk 0:00:13]}  Kb8 {[%clk 0:01:06]} 62. a6 {[%clk 0:00:13]}  Ka8 {[%clk 0:01:07]} 63. b4 {[%clk 0:00:14]}  Kb8 {[%clk 0:01:08]} 64. b5 {[%clk 0:00:14]}  Ka8 {[%clk 0:01:08]} 65. Kc6 {[%clk 0:00:14]}  Ka7 {[%clk 0:01:09]} 66. b6+ {[%clk 0:00:14]}  Kb8 {[%clk 0:01:10]} 67. b7 {[%clk 0:00:12]}  Ka7 {[%clk 0:01:10]} 68. Kc7 {[%clk 0:00:13]}  Kxa6 {[%clk 0:01:11]} 69. b8=Q {[%clk 0:00:14]} 1-0


[Site "https://www.chess.com"]

[Event "Titled Tuesday Blitz May 17 Early 2022"]
[White "Batsiashvili, Nino"]
[Black "Kozak, Adam"]
[WhiteFideId "13602993"]
[BlackFideId "753246"]
[WhiteElo "2193"]
[BlackElo "2459"]
[Result "0-1"]
[Round "01"]
[TimeControl "180+1"]
[Date "2022.05.17"]
[WhiteClock "0:00:01"]
[BlackClock "0:00:19"]

1. d4 {[%clk 0:02:59]}  Nf6 {[%clk 0:02:58]} 2. c4 {[%clk 0:02:57]}  e6 {[%clk 0:02:26]} 3. Nc3 {[%clk 0:02:56]}  d5 {[%clk 0:02:23]} 4. Nf3 {[%clk 0:02:53]}  Nbd7 {[%clk 0:02:21]} 5. cxd5 {[%clk 0:02:47]}  exd5 {[%clk 0:02:20]} 6. Bf4 {[%clk 0:02:47]}  c6 {[%clk 0:02:20]} 7. h3 {[%clk 0:02:44]}  Nb6 {[%clk 0:02:19]} 8. e3 {[%clk 0:02:43]}  Bd6 {[%clk 0:02:19]} 9. Bxd6 {[%clk 0:02:39]}  Qxd6 {[%clk 0:02:20]} 10. Bd3 {[%clk 0:02:40]}  Be6 {[%clk 0:02:18]} 11. Qc2 {[%clk 0:02:39]}  O-O-O {[%clk 0:02:17]} 12. Nb5 {[%clk 0:02:31]}  Qb4+ {[%clk 0:02:17]} 13. Ke2 {[%clk 0:02:27]}  Kb8 {[%clk 0:02:13]} 14. a3 {[%clk 0:02:24]}  Qe7 {[%clk 0:02:12]} 15. Nc3 {[%clk 0:02:20]}  h6 {[%clk 0:02:10]} 16. Na4 {[%clk 0:02:18]}  g5 {[%clk 0:02:09]} 17. Nc5 {[%clk 0:02:16]}  g4 {[%clk 0:02:06]} 18. hxg4 {[%clk 0:02:16]}  Bxg4 {[%clk 0:02:06]} 19. a4 {[%clk 0:02:16]}  Nbd7 {[%clk 0:02:03]} 20. Rhc1 {[%clk 0:02:10]}  Nxc5 {[%clk 0:01:57]} 21. Qxc5 {[%clk 0:02:11]}  Qe6 {[%clk 0:01:55]} 22. b4 {[%clk 0:02:06]}  Ne4 {[%clk 0:01:54]} 23. Qc2 {[%clk 0:02:05]}  Ng5 {[%clk 0:01:51]} 24. b5 {[%clk 0:02:03]}  Rc8 {[%clk 0:01:50]} 25. bxc6 {[%clk 0:02:00]}  Rxc6 {[%clk 0:01:51]} 26. Qb2 {[%clk 0:01:56]}  Rb6 {[%clk 0:01:49]} 27. Qc3 {[%clk 0:01:51]}  Qf6 {[%clk 0:01:41]} 28. Qc7+ {[%clk 0:01:48]}  Ka8 {[%clk 0:01:41]} 29. Qg3 {[%clk 0:01:30]}  Rb2+ {[%clk 0:01:33]} 30. Rc2 {[%clk 0:01:29]}  Rxc2+ {[%clk 0:01:26]} 31. Bxc2 {[%clk 0:01:30]}  Rc8 {[%clk 0:01:25]} 32. Bd3 {[%clk 0:01:22]}  Bf5 {[%clk 0:01:23]} 33. Rd1 {[%clk 0:00:55]}  Ne4 {[%clk 0:01:17]} 34. Bxe4 {[%clk 0:00:43]}  Bxe4 {[%clk 0:01:18]} 35. Rd2 {[%clk 0:00:38]}  Qa6+ {[%clk 0:01:17]} 36. Ke1 {[%clk 0:00:33]}  Qxa4 {[%clk 0:01:14]} 37. Rd1 {[%clk 0:00:25]}  Bc2 {[%clk 0:01:14]} 38. Rc1 {[%clk 0:00:21]}  Qb4+ {[%clk 0:01:04]} 39. Nd2 {[%clk 0:00:21]}  Qb2 {[%clk 0:01:04]} 40. Rxc2 {[%clk 0:00:11]}  Qxc2 {[%clk 0:01:04]} 41. Qg4 {[%clk 0:00:11]}  a5 {[%clk 0:01:01]} 42. Qd7 {[%clk 0:00:10]}  a4 {[%clk 0:00:59]} 43. Qxd5 {[%clk 0:00:10]}  Qc3 {[%clk 0:00:52]} 44. Qb5 {[%clk 0:00:07]}  a3 {[%clk 0:00:51]} 45. Qa4+ {[%clk 0:00:07]}  Kb8 {[%clk 0:00:51]} 46. d5 {[%clk 0:00:07]}  Qd3 {[%clk 0:00:48]} 47. Kd1 {[%clk 0:00:05]}  Qxd5 {[%clk 0:00:33]} 48. Qxa3 {[%clk 0:00:05]}  Rd8 {[%clk 0:00:34]} 49. Qb4 {[%clk 0:00:05]}  Qd6 {[%clk 0:00:23]} 50. Qc3 {[%clk 0:00:04]}  f5 {[%clk 0:00:23]} 51. Ke1 {[%clk 0:00:04]}  Rc8 {[%clk 0:00:22]} 52. Qb2 {[%clk 0:00:01]}  Qd3 {[%clk 0:00:19]} 0-1


[Site "https://www.chess.com"]

[Event "Titled Tuesday Blitz May 17 Early 2022"]
[White "Bethke, Richard"]
[Black "Sanal, Vahap"]
[WhiteFideId "12959243"]
[BlackFideId "6300545"]
[WhiteElo "2523"]
[BlackElo "2574"]
[Result "0-1"]
[Round "01"]
[TimeControl "180+1"]
[Date "2022.05.17"]
[WhiteClock "0:00:16"]
[BlackClock "0:01:32"]

1. e4 {[%clk 0:03:00]}  d6 {[%clk 0:02:59]} 2. Nf3 {[%clk 0:03:00]}  Nf6 {[%clk 0:02:59]} 3. Nc3 {[%clk 0:03:00]}  e5 {[%clk 0:02:59]} 4. d4 {[%clk 0:03:01]}  Nbd7 {[%clk 0:02:59]} 5. dxe5 {[%clk 0:03:01]}  dxe5 {[%clk 0:02:59]} 6. Bc4 {[%clk 0:03:01]}  Bb4 {[%clk 0:02:58]} 7. Bd2 {[%clk 0:02:52]}  O-O {[%clk 0:02:58]} 8. O-O {[%clk 0:02:52]}  c6 {[%clk 0:02:47]} 9. Re1 {[%clk 0:02:48]}  b5 {[%clk 0:02:45]} 10. Bb3 {[%clk 0:02:45]}  Bc5 {[%clk 0:02:32]} 11. Bg5 {[%clk 0:02:38]}  h6 {[%clk 0:02:27]} 12. Bh4 {[%clk 0:02:37]}  Qe7 {[%clk 0:02:22]} 13. Qd2 {[%clk 0:02:32]}  Rd8 {[%clk 0:02:21]} 14. Rad1 {[%clk 0:02:32]}  Bb7 {[%clk 0:02:18]} 15. Bg3 {[%clk 0:02:19]}  Nf8 {[%clk 0:02:13]} 16. Qe2 {[%clk 0:02:18]}  Ng6 {[%clk 0:02:13]} 17. h4 {[%clk 0:02:13]}  Nh5 {[%clk 0:02:09]} 18. Bh2 {[%clk 0:02:04]}  Nhf4 {[%clk 0:02:09]} 19. Qf1 {[%clk 0:02:01]}  Nxh4 {[%clk 0:02:04]} 20. Nxe5 {[%clk 0:00:59]}  Qxe5 {[%clk 0:02:00]} 21. Ne2 {[%clk 0:00:59]}  Nh3+ {[%clk 0:01:54]} 22. Kh1 {[%clk 0:00:52]}  Nxf2+ {[%clk 0:01:53]} 23. Qxf2 {[%clk 0:00:52]}  Qxh2+ {[%clk 0:01:53]} 24. Kxh2 {[%clk 0:00:52]}  Bxf2 {[%clk 0:01:54]} 25. Rf1 {[%clk 0:00:50]}  Rxd1 {[%clk 0:01:53]} 26. Rxd1 {[%clk 0:00:50]}  c5 {[%clk 0:01:47]} 27. Bxf7+ {[%clk 0:00:29]}  Kxf7 {[%clk 0:01:46]} 28. Rd7+ {[%clk 0:00:30]}  Kg8 {[%clk 0:01:46]} 29. Rxb7 {[%clk 0:00:31]}  Ng6 {[%clk 0:01:43]} 30. Rxb5 {[%clk 0:00:29]}  Re8 {[%clk 0:01:43]} 31. Ng3 {[%clk 0:00:19]}  Re5 {[%clk 0:01:35]} 32. Rb7 {[%clk 0:00:16]}  Rg5 {[%clk 0:01:32]} 0-1


[Site "https://www.chess.com"]

[Event "Titled Tuesday Blitz May 17 Early 2022"]
[White "Bortnyk, Olexandr"]
[Black "Hamley, Ryan"]
[WhiteFideId "14120828"]
[BlackFideId "30959497"]
[WhiteElo "2723"]
[BlackElo "2550"]
[Result "1-0"]
[Round "01"]
[TimeControl "180+1"]
[Date "2022.05.17"]
[WhiteClock "0:01:56"]
[BlackClock "0:01:08"]

1. e4 {[%clk 0:02:53]}  c6 {[%clk 0:02:59]} 2. c4 {[%clk 0:02:52]}  d5 {[%clk 0:02:59]} 3. cxd5 {[%clk 0:02:53]}  cxd5 {[%clk 0:02:59]} 4. exd5 {[%clk 0:02:54]}  Nf6 {[%clk 0:03:00]} 5. Qa4+ {[%clk 0:02:54]}  Nbd7 {[%clk 0:02:59]} 6. Nc3 {[%clk 0:02:54]}  g6 {[%clk 0:02:59]} 7. Bc4 {[%clk 0:02:54]}  Bg7 {[%clk 0:02:59]} 8. d3 {[%clk 0:02:55]}  O-O {[%clk 0:03:00]} 9. Nf3 {[%clk 0:02:55]}  a6 {[%clk 0:03:00]} 10. Qa3 {[%clk 0:02:56]}  Rb8 {[%clk 0:02:54]} 11. Bf4 {[%clk 0:02:56]}  Ra8 {[%clk 0:02:53]} 12. O-O {[%clk 0:02:55]}  b6 {[%clk 0:02:44]} 13. Rfe1 {[%clk 0:02:53]}  Re8 {[%clk 0:02:40]} 14. Nd4 {[%clk 0:02:52]}  Bb7 {[%clk 0:02:31]} 15. Nc6 {[%clk 0:02:52]}  Bxc6 {[%clk 0:02:31]} 16. dxc6 {[%clk 0:02:53]}  Nc5 {[%clk 0:02:32]} 17. c7 {[%clk 0:02:50]}  Qd7 {[%clk 0:02:30]} 18. b4 {[%clk 0:02:40]}  Nb7 {[%clk 0:02:15]} 19. Na4 {[%clk 0:02:35]}  Nd6 {[%clk 0:01:52]} 20. Nxb6 {[%clk 0:02:31]}  Qxc7 {[%clk 0:01:52]} 21. Nxa8 {[%clk 0:02:30]}  Rxa8 {[%clk 0:01:53]} 22. Qb3 {[%clk 0:02:19]}  Nh5 {[%clk 0:01:48]} 23. Bxf7+ {[%clk 0:02:17]}  Kh8 {[%clk 0:01:47]} 24. Rac1 {[%clk 0:02:16]}  Qb6 {[%clk 0:01:38]} 25. Bxd6 {[%clk 0:02:09]}  Qxd6 {[%clk 0:01:39]} 26. Qd5 {[%clk 0:02:08]}  Qxd5 {[%clk 0:01:36]} 27. Bxd5 {[%clk 0:02:09]}  Rd8 {[%clk 0:01:36]} 28. Bb7 {[%clk 0:02:03]}  Nf4 {[%clk 0:01:30]} 29. Rxe7 {[%clk 0:02:00]}  Bd4 {[%clk 0:01:13]} 30. Rc8 {[%clk 0:01:57]}  Rxc8 {[%clk 0:01:09]} 31. Bxc8 {[%clk 0:01:58]}  Nxd3 {[%clk 0:01:08]} 32. Rd7 {[%clk 0:01:56]} 1-0


[Site "https://www.chess.com"]

[Event "Titled Tuesday Blitz May 17 Early 2022"]
[White "Chigaev, Maksim"]
[Black "Pinheiro, Iung Alicio de O."]
[WhiteFideId "4108116"]
[BlackFideId "2104350"]
[WhiteElo "2457"]
[BlackElo "2283"]
[Result "1-0"]
[Round "01"]
[TimeControl "180+1"]
[Date "2022.05.17"]
[WhiteClock "0:02:04"]
[BlackClock "0:01:07"]

1. Nf3 {[%clk 0:03:00]}  c5 {[%clk 0:02:59]} 2. c4 {[%clk 0:03:00]}  g6 {[%clk 0:02:58]} 3. Nc3 {[%clk 0:02:59]}  Bg7 {[%clk 0:02:58]} 4. g3 {[%clk 0:03:00]}  Nc6 {[%clk 0:02:59]} 5. Bg2 {[%clk 0:03:01]}  d6 {[%clk 0:02:59]} 6. O-O {[%clk 0:03:01]}  Be6 {[%clk 0:03:00]} 7. b3 {[%clk 0:03:00]}  Qc8 {[%clk 0:02:58]} 8. e3 {[%clk 0:03:00]}  Bh3 {[%clk 0:02:58]} 9. d4 {[%clk 0:02:59]}  h5 {[%clk 0:02:57]} 10. Bxh3 {[%clk 0:02:43]}  Qxh3 {[%clk 0:02:56]} 11. Nd5 {[%clk 0:02:44]}  Rc8 {[%clk 0:02:41]} 12. Rb1 {[%clk 0:02:30]}  h4 {[%clk 0:02:37]} 13. Ng5 {[%clk 0:02:27]}  Qf5 {[%clk 0:02:13]} 14. e4 {[%clk 0:02:27]}  Qd7 {[%clk 0:02:13]} 15. dxc5 {[%clk 0:02:27]}  dxc5 {[%clk 0:02:13]} 16. Be3 {[%clk 0:02:28]}  hxg3 {[%clk 0:02:09]} 17. fxg3 {[%clk 0:02:26]}  f6 {[%clk 0:01:53]} 18. Nf3 {[%clk 0:02:26]}  b6 {[%clk 0:01:52]} 19. e5 {[%clk 0:02:18]}  f5 {[%clk 0:01:30]} 20. Nf4 {[%clk 0:02:08]}  Rh6 {[%clk 0:01:11]} 21. Qxd7+ {[%clk 0:02:04]}  Kxd7 {[%clk 0:01:12]} 22. Rbd1+ {[%clk 0:02:04]}  Ke8 {[%clk 0:01:11]} 23. Ne6 {[%clk 0:02:05]}  Rh7 {[%clk 0:01:07]} 24. Nfg5 {[%clk 0:02:04]} 1-0


[Site "https://www.chess.com"]

[Event "Titled Tuesday Blitz May 17 Early 2022"]
[White "Dounis, Alexandros"]
[Black "Sadhwani, Raunak"]
[WhiteFideId "4213238"]
[BlackFideId "35093487"]
[WhiteElo "2204"]
[BlackElo "2616"]
[Result "0-1"]
[Round "01"]
[TimeControl "180+1"]
[Date "2022.05.17"]
[WhiteClock "0:00:02"]
[BlackClock "0:00:17"]

1. Nf3 {[%clk 0:02:56]}  g6 {[%clk 0:02:59]} 2. g3 {[%clk 0:02:55]}  Bg7 {[%clk 0:03:00]} 3. d4 {[%clk 0:02:55]}  f5 {[%clk 0:02:54]} 4. Bg2 {[%clk 0:02:51]}  Nf6 {[%clk 0:02:54]} 5. O-O {[%clk 0:02:50]}  O-O {[%clk 0:02:55]} 6. b3 {[%clk 0:02:49]}  b6 {[%clk 0:02:52]} 7. Bb2 {[%clk 0:02:49]}  Bb7 {[%clk 0:02:52]} 8. Nbd2 {[%clk 0:02:47]}  Na6 {[%clk 0:02:51]} 9. c4 {[%clk 0:02:45]}  e6 {[%clk 0:02:51]} 10. Rc1 {[%clk 0:02:40]}  Qe7 {[%clk 0:02:48]} 11. Qc2 {[%clk 0:02:38]}  c5 {[%clk 0:02:47]} 12. Rfd1 {[%clk 0:02:24]}  d6 {[%clk 0:02:46]} 13. a3 {[%clk 0:02:12]}  Rac8 {[%clk 0:02:43]} 14. Qb1 {[%clk 0:02:04]}  cxd4 {[%clk 0:02:33]} 15. Nxd4 {[%clk 0:02:00]}  Bxg2 {[%clk 0:02:34]} 16. Kxg2 {[%clk 0:02:00]}  Nc5 {[%clk 0:02:35]} 17. b4 {[%clk 0:01:54]}  Nce4 {[%clk 0:02:32]} 18. Nxe4 {[%clk 0:01:46]}  fxe4 {[%clk 0:02:32]} 19. Nb5 {[%clk 0:01:42]}  Ng4 {[%clk 0:01:34]} 20. Bxg7 {[%clk 0:01:31]}  Rxf2+ {[%clk 0:01:33]} 21. Kg1 {[%clk 0:01:31]}  Rxe2 {[%clk 0:00:43]} 22. Bd4 {[%clk 0:01:18]}  Nxh2 {[%clk 0:00:42]} 23. Bf2 {[%clk 0:00:58]}  Rf8 {[%clk 0:00:35]} 24. Rf1 {[%clk 0:00:49]}  Qg5 {[%clk 0:00:26]} 25. Qb3 {[%clk 0:00:02]}  e3 {[%clk 0:00:17]} 0-1


[Site "https://www.chess.com"]

[Event "Titled Tuesday Blitz May 17 Early 2022"]
[White "Drygalov, Sergey"]
[Black "Terzi, Alexei"]
[WhiteFideId "24171743"]
[BlackFideId "13505076"]
[WhiteElo "2514"]
[BlackElo "2031"]
[Result "1-0"]
[Round "01"]
[TimeControl "180+1"]
[Date "2022.05.17"]
[WhiteClock "0:01:32"]
[BlackClock "0:00:09"]

1. d4 {[%clk 0:02:59]}  f6 {[%clk 0:02:59]} 2. c4 {[%clk 0:02:59]}  g6 {[%clk 0:02:59]} 3. h4 {[%clk 0:02:58]}  h5 {[%clk 0:02:53]} 4. e4 {[%clk 0:02:57]}  c5 {[%clk 0:02:40]} 5. d5 {[%clk 0:02:52]}  d6 {[%clk 0:02:36]} 6. Nc3 {[%clk 0:02:52]}  Nh6 {[%clk 0:02:27]} 7. Bd3 {[%clk 0:02:52]}  Nf7 {[%clk 0:02:26]} 8. f4 {[%clk 0:02:51]}  Bg7 {[%clk 0:02:20]} 9. e5 {[%clk 0:02:48]}  f5 {[%clk 0:02:18]} 10. e6 {[%clk 0:02:47]}  Nh6 {[%clk 0:02:17]} 11. Nf3 {[%clk 0:02:45]}  O-O {[%clk 0:02:10]} 12. Bd2 {[%clk 0:02:44]}  a6 {[%clk 0:02:10]} 13. a4 {[%clk 0:02:43]}  b6 {[%clk 0:02:05]} 14. Nh2 {[%clk 0:02:29]}  Qe8 {[%clk 0:01:54]} 15. Qc2 {[%clk 0:02:25]}  Bb7 {[%clk 0:01:48]} 16. g4 {[%clk 0:02:24]}  hxg4 {[%clk 0:01:12]} 17. Nf1 {[%clk 0:02:24]}  b5 {[%clk 0:01:12]} 18. Ng3 {[%clk 0:02:23]}  bxc4 {[%clk 0:01:08]} 19. Bxc4 {[%clk 0:02:23]}  a5 {[%clk 0:01:02]} 20. h5 {[%clk 0:01:59]}  Na6 {[%clk 0:01:01]} 21. Bb5 {[%clk 0:02:00]}  Qd8 {[%clk 0:00:54]} 22. hxg6 {[%clk 0:01:59]}  Nb4 {[%clk 0:00:53]} 23. Qb3 {[%clk 0:01:59]}  Rf6 {[%clk 0:00:48]} 24. Nh5 {[%clk 0:01:53]}  Rxg6 {[%clk 0:00:41]} 25. Nxg7 {[%clk 0:01:52]}  Kxg7 {[%clk 0:00:42]} 26. O-O-O {[%clk 0:01:50]}  c4 {[%clk 0:00:36]} 27. Qxc4 {[%clk 0:01:47]}  Rc8 {[%clk 0:00:35]} 28. Qd4+ {[%clk 0:01:47]}  Kg8 {[%clk 0:00:36]} 29. Kb1 {[%clk 0:01:45]}  Qf8 {[%clk 0:00:34]} 30. Be3 {[%clk 0:01:40]}  Qg7 {[%clk 0:00:31]} 31. Qb6 {[%clk 0:01:39]}  Ba8 {[%clk 0:00:25]} 32. Bd7 {[%clk 0:01:34]}  Rf8 {[%clk 0:00:22]} 33. Bd4 {[%clk 0:01:34]}  Qh7 {[%clk 0:00:20]} 34. Qxa5 {[%clk 0:01:33]}  Rb8 {[%clk 0:00:14]} 35. Ba7 {[%clk 0:01:33]}  Rb7 {[%clk 0:00:09]} 36. Qd8+ {[%clk 0:01:32]} 1-0


[Site "https://www.chess.com"]

[Event "Titled Tuesday Blitz May 17 Early 2022"]
[White "Grieve, Harry"]
[Black "Demchenko, Anton"]
[WhiteFideId "426520"]
[BlackFideId "4160258"]
[WhiteElo "2294"]
[BlackElo "2539"]
[Result "0-1"]
[Round "01"]
[TimeControl "180+1"]
[Date "2022.05.17"]
[WhiteClock "0:00:42"]
[BlackClock "0:02:26"]

1. e4 {[%clk 0:02:52]}  e5 {[%clk 0:02:59]} 2. Nf3 {[%clk 0:02:50]}  Nc6 {[%clk 0:03:00]} 3. Bc4 {[%clk 0:02:50]}  Nf6 {[%clk 0:03:00]} 4. d3 {[%clk 0:02:50]}  h6 {[%clk 0:02:59]} 5. O-O {[%clk 0:02:44]}  d6 {[%clk 0:02:59]} 6. c3 {[%clk 0:02:31]}  g6 {[%clk 0:02:59]} 7. a4 {[%clk 0:02:29]}  Bg7 {[%clk 0:02:59]} 8. Na3 {[%clk 0:02:29]}  O-O {[%clk 0:02:59]} 9. Re1 {[%clk 0:02:29]}  Kh8 {[%clk 0:02:57]} 10. b4 {[%clk 0:02:23]}  Nh7 {[%clk 0:02:51]} 11. Nc2 {[%clk 0:02:13]}  f5 {[%clk 0:02:51]} 12. a5 {[%clk 0:02:12]}  a6 {[%clk 0:02:48]} 13. exf5 {[%clk 0:01:57]}  gxf5 {[%clk 0:02:48]} 14. d4 {[%clk 0:01:52]}  e4 {[%clk 0:02:46]} 15. Nd2 {[%clk 0:01:52]}  d5 {[%clk 0:02:47]} 16. Bb3 {[%clk 0:01:53]}  f4 {[%clk 0:02:42]} 17. Nf1 {[%clk 0:01:53]}  Ne7 {[%clk 0:02:40]} 18. c4 {[%clk 0:01:44]}  c6 {[%clk 0:02:40]} 19. g3 {[%clk 0:01:31]}  Ng5 {[%clk 0:02:33]} 20. Bxf4 {[%clk 0:01:11]}  Nh3+ {[%clk 0:02:33]} 21. Kg2 {[%clk 0:01:12]}  Rxf4 {[%clk 0:02:32]} 22. gxf4 {[%clk 0:01:08]}  Ng6 {[%clk 0:02:33]} 23. Ng3 {[%clk 0:00:53]}  Ngxf4+ {[%clk 0:02:26]} 24. Kh1 {[%clk 0:00:42]}  Nxf2+ {[%clk 0:02:26]} 0-1


[Site "https://www.chess.com"]

[Event "Titled Tuesday Blitz May 17 Early 2022"]
[White "Harsha Bharathakoti"]
[Black "Manukian, Artak"]
[WhiteFideId "5078776"]
[BlackFideId "13301373"]
[WhiteElo "2575"]
[BlackElo "2501"]
[Result "1-0"]
[Round "01"]
[TimeControl "180+1"]
[Date "2022.05.17"]
[WhiteClock "0:02:36"]
[BlackClock "0:02:22"]

1. Nf3 {[%clk 0:03:00]}  c6 {[%clk 0:02:59]} 2. b3 {[%clk 0:02:59]}  d5 {[%clk 0:03:00]} 3. Bb2 {[%clk 0:03:00]}  Nf6 {[%clk 0:02:59]} 4. e3 {[%clk 0:03:01]}  Bg4 {[%clk 0:02:59]} 5. h3 {[%clk 0:02:59]}  Bh5 {[%clk 0:02:59]} 6. g4 {[%clk 0:02:57]}  Bg6 {[%clk 0:02:58]} 7. Ne5 {[%clk 0:02:58]}  Nbd7 {[%clk 0:02:58]} 8. Nxg6 {[%clk 0:02:58]}  hxg6 {[%clk 0:02:56]} 9. Bg2 {[%clk 0:02:51]}  e5 {[%clk 0:02:54]} 10. g5 {[%clk 0:02:46]}  Ng8 {[%clk 0:02:34]} 11. h4 {[%clk 0:02:42]}  Ne7 {[%clk 0:02:30]} 12. d3 {[%clk 0:02:37]}  Nf5 {[%clk 0:02:29]} 13. Qg4 {[%clk 0:02:37]}  Bb4+ {[%clk 0:02:22]} 14. Qxb4 {[%clk 0:02:36]} 1-0


[Site "https://www.chess.com"]

[Event "Titled Tuesday Blitz May 17 Early 2022"]
[White "Keymer, Vincent"]
[Black "Sirosh, Ilja"]
[WhiteFideId "12940690"]
[BlackFideId "4500458"]
[WhiteElo "2548"]
[BlackElo "2241"]
[Result "1-0"]
[Round "01"]
[TimeControl "180+1"]
[Date "2022.05.17"]
[WhiteClock "0:00:46"]
[BlackClock "0:00:10"]

1. Nf3 {[%clk 0:03:00]}  d5 {[%clk 0:02:59]} 2. e3 {[%clk 0:02:59]}  Nf6 {[%clk 0:02:56]} 3. c4 {[%clk 0:02:59]}  e6 {[%clk 0:02:56]} 4. Nc3 {[%clk 0:03:00]}  c5 {[%clk 0:02:56]} 5. cxd5 {[%clk 0:02:59]}  exd5 {[%clk 0:02:57]} 6. d4 {[%clk 0:02:59]}  Nc6 {[%clk 0:02:57]} 7. Bb5 {[%clk 0:02:59]}  cxd4 {[%clk 0:02:57]} 8. Nxd4 {[%clk 0:03:00]}  Bd7 {[%clk 0:02:57]} 9. O-O {[%clk 0:03:00]}  Bd6 {[%clk 0:02:57]} 10. Nf3 {[%clk 0:03:01]}  Be6 {[%clk 0:02:45]} 11. b3 {[%clk 0:03:00]}  O-O {[%clk 0:02:44]} 12. Bb2 {[%clk 0:03:00]}  Qe7 {[%clk 0:02:44]} 13. h3 {[%clk 0:02:53]}  Rfd8 {[%clk 0:02:35]} 14. Rc1 {[%clk 0:02:49]}  Rac8 {[%clk 0:02:35]} 15. Bd3 {[%clk 0:02:10]}  Bb8 {[%clk 0:02:18]} 16. Ne2 {[%clk 0:01:48]}  Ne4 {[%clk 0:02:14]} 17. Re1 {[%clk 0:01:41]}  a6 {[%clk 0:01:53]} 18. Nf4 {[%clk 0:01:35]}  Nb4 {[%clk 0:01:34]} 19. Rxc8 {[%clk 0:01:15]}  Bxc8 {[%clk 0:01:27]} 20. Bb1 {[%clk 0:01:15]}  Be6 {[%clk 0:00:43]} 21. Qd4 {[%clk 0:01:07]}  f6 {[%clk 0:00:28]} 22. Nxe6 {[%clk 0:01:07]}  Nc6 {[%clk 0:00:29]} 23. Qb6 {[%clk 0:00:54]}  Qxe6 {[%clk 0:00:29]} 24. Qxb7 {[%clk 0:00:54]}  Ne7 {[%clk 0:00:15]} 25. Rd1 {[%clk 0:00:49]}  Be5 {[%clk 0:00:09]} 26. Bxe5 {[%clk 0:00:47]}  fxe5 {[%clk 0:00:10]} 27. Bxe4 {[%clk 0:00:46]} 1-0


[Site "https://www.chess.com"]